[Event "Betsys MČR v online bleskovém šachu 2021"]
[Site "Chess.com"]
[Date "2021.04.17"]
[Round "2"]
[White "vadoto"]
[Black "youhy"]
[Result "0-1"]
[WhiteElo "1277"]
[BlackElo "1765"]
[TimeControl "180+1"]
[EndTime "9:17:51 PDT"]
[Termination "Uživatel youhy zvítězil na čas"]

1. e4 {[%clk 0:03:00.9]} 1... c5 {[%clk 0:02:59.7]} 2. Nf3 {[%clk 0:03:00.2]}
2... d6 {[%clk 0:02:59.1]} 3. Nc3 {[%clk 0:02:57.3]} 3... Nf6 {[%clk 0:02:57.8]}
4. d4 {[%clk 0:02:50.9]} 4... cxd4 {[%clk 0:02:57.4]} 5. Nxd4 {[%clk 0:02:50.2]}
5... a6 {[%clk 0:02:56]} 6. Be2 {[%clk 0:02:46.4]} 6... Nbd7 {[%clk 0:02:50.8]}
7. O-O {[%clk 0:02:42.3]} 7... e6 {[%clk 0:02:48.9]} 8. Bg5 {[%clk 0:02:40.4]}
8... Be7 {[%clk 0:02:47.5]} 9. Qd2 {[%clk 0:02:33.9]} 9... O-O {[%clk
0:02:43.9]} 10. Rfe1 {[%clk 0:02:26.3]} 10... Qc7 {[%clk 0:02:35.2]} 11. Rad1
{[%clk 0:02:24.8]} 11... b5 {[%clk 0:02:30.6]} 12. Bf3 {[%clk 0:02:22.1]} 12...
Bb7 {[%clk 0:02:14.9]} 13. Qe3 {[%clk 0:02:14.4]} 13... Ne5 {[%clk 0:02:11.1]}
14. h3 {[%clk 0:02:10.3]} 14... Rfc8 {[%clk 0:01:19.7]} 15. Be2 {[%clk
0:01:43.2]} 15... b4 {[%clk 0:01:10.2]} 16. Na4 {[%clk 0:01:30.5]} 16... Rab8
{[%clk 0:00:27.6]} 17. b3 {[%clk 0:01:24.8]} 17... Nxe4 {[%clk 0:00:23.9]} 18.
Bxe7 {[%clk 0:01:19.3]} 18... Qxe7 {[%clk 0:00:24.8]} 19. Nb6 {[%clk 0:01:12.1]}
19... Rc3 {[%clk 0:00:19.1]} 20. Qc1 {[%clk 0:01:03.4]} 20... Qc7 {[%clk
0:00:18.6]} 21. Nc4 {[%clk 0:00:58.3]} 21... Nxc4 {[%clk 0:00:18.1]} 22. Bxc4
{[%clk 0:00:57.1]} 22... d5 {[%clk 0:00:17.2]} 23. Bd3 {[%clk 0:00:52.8]} 23...
a5 {[%clk 0:00:16]} 24. Nb5 {[%clk 0:00:51.3]} 24... Qc6 {[%clk 0:00:14.1]} 25.
Nxc3 {[%clk 0:00:49.7]} 25... Nxc3 {[%clk 0:00:14.1]} 26. Rd2 {[%clk 0:00:48.8]}
26... a4 {[%clk 0:00:13.4]} 27. Re3 {[%clk 0:00:37.9]} 27... d4 {[%clk 0:00:09]}
28. Rg3 {[%clk 0:00:35]} 28... Nxa2 {[%clk 0:00:06.4]} 29. Qb2 {[%clk
0:00:27.6]} 29... Nc3 {[%clk 0:00:06.1]} 30. bxa4 {[%clk 0:00:20.3]} 30... g6
{[%clk 0:00:06.6]} 31. Qb3 {[%clk 0:00:11.5]} 31... Qxa4 {[%clk 0:00:06.9]} 32.
Qxa4 {[%clk 0:00:09.1]} 32... Nxa4 {[%clk 0:00:07.8]} 33. Bb5 {[%clk 0:00:08.3]}
33... Nc3 {[%clk 0:00:07.3]} 34. Bd7 {[%clk 0:00:04.1]} 34... e5 {[%clk
0:00:07.3]} 35. Bg4 {[%clk 0:00:03.2]} 35... Ne4 {[%clk 0:00:07.1]} 36. Rgd3
{[%clk 0:00:01.1]} 36... Nxd2 {[%clk 0:00:07.3]} 37. Rxd2 {[%clk 0:00:01.1]}
37... Ba6 {[%clk 0:00:07.6]} 0-1

[Event "Betsys MČR v online bleskovém šachu 2021"]
[Site "Chess.com"]
[Date "2021.04.17"]
[Round "2"]
[White "kaprasov"]
[Black "TheFr0zenSun"]
[Result "0-1"]
[WhiteElo "1890"]
[BlackElo "2236"]
[TimeControl "180+1"]
[EndTime "9:17:54 PDT"]
[Termination "Uživatel TheFr0zenSun zvítězil na čas"]

1. d4 {[%clk 0:03:00.9]} 1... Nf6 {[%clk 0:02:59.2]} 2. Bf4 {[%clk 0:02:54.6]}
2... e6 {[%clk 0:02:45.2]} 3. e3 {[%clk 0:02:53.6]} 3... c5 {[%clk 0:02:44.3]}
4. c3 {[%clk 0:02:53.3]} 4... d5 {[%clk 0:02:43.3]} 5. Nd2 {[%clk 0:02:52]} 5...
Bd6 {[%clk 0:02:40.2]} 6. Bg3 {[%clk 0:02:50.4]} 6... Qc7 {[%clk 0:02:40]} 7.
Ngf3 {[%clk 0:02:36.7]} 7... Nbd7 {[%clk 0:02:39.2]} 8. Bxd6 {[%clk 0:02:20.8]}
8... Qxd6 {[%clk 0:02:38.5]} 9. Bd3 {[%clk 0:02:19]} 9... O-O {[%clk 0:02:36.5]}
10. O-O {[%clk 0:02:17.6]} 10... e5 {[%clk 0:02:36.3]} 11. dxe5 {[%clk
0:02:16.7]} 11... Nxe5 {[%clk 0:02:35.1]} 12. Nxe5 {[%clk 0:02:16.9]} 12... Qxe5
{[%clk 0:02:34.8]} 13. Nf3 {[%clk 0:02:17.1]} 13... Qh5 {[%clk 0:02:34.4]} 14.
h3 {[%clk 0:02:13.7]} 14... Re8 {[%clk 0:02:10.1]} 15. Be2 {[%clk 0:02:02]}
15... Qg6 {[%clk 0:01:57.6]} 16. Kh1 {[%clk 0:01:50.8]} 16... Be6 {[%clk
0:01:52]} 17. Nh4 {[%clk 0:01:24.7]} 17... Qh6 {[%clk 0:01:47.1]} 18. Nf3 {[%clk
0:01:21.7]} 18... a6 {[%clk 0:01:45.7]} 19. Qd2 {[%clk 0:01:06.6]} 19... Bxh3
{[%clk 0:01:32.3]} 20. gxh3 {[%clk 0:01:04.9]} 20... Qxh3+ {[%clk 0:01:30.9]}
21. Nh2 {[%clk 0:01:05]} 21... Re4 {[%clk 0:01:30.1]} 22. f3 {[%clk 0:00:48.2]}
22... Rh4 {[%clk 0:01:29.9]} 23. Rf2 {[%clk 0:00:43]} 23... Re8 {[%clk
0:01:19.6]} 24. Qd3 {[%clk 0:00:36.3]} 24... Nh5 {[%clk 0:01:12.6]} 25. Re1
{[%clk 0:00:09.7]} 25... Ng3+ {[%clk 0:00:56.1]} 26. Kg1 {[%clk 0:00:09.9]}
26... Re5 {[%clk 0:00:39.4]} 27. Bf1 {[%clk 0:00:09.2]} 27... Qe6 {[%clk
0:00:26.3]} 28. f4 {[%clk 0:00:07.9]} 28... Reh5 {[%clk 0:00:24]} 29. Qd2 {[%clk
0:00:02.9]} 29... Ne4 {[%clk 0:00:22.2]} 30. Qc2 {[%clk 0:00:01.2]} 30... Nxf2
{[%clk 0:00:16.2]} 31. Qxf2 {[%clk 0:00:01.3]} 31... Rxh2 {[%clk 0:00:16.5]} 32.
Qxh2 {[%clk 0:00:01.6]} 32... Rxh2 {[%clk 0:00:17.1]} 33. Kxh2 {[%clk
0:00:02.5]} 33... d4 {[%clk 0:00:16.3]} 34. cxd4 {[%clk 0:00:01.9]} 34... cxd4
{[%clk 0:00:16.3]} 35. e4 {[%clk 0:00:02.5]} 35... Qxa2 {[%clk 0:00:16.1]} 36.
Re2 {[%clk 0:00:02]} 36... g6 {[%clk 0:00:15.2]} 37. Rc2 {[%clk 0:00:02]} 37...
Qb1 {[%clk 0:00:13.1]} 38. Bd3 {[%clk 0:00:01.3]} 38... Qd1 {[%clk 0:00:11.5]}
0-1

[Event "Betsys MČR v online bleskovém šachu 2021"]
[Site "Chess.com"]
[Date "2021.04.17"]
[Round "2"]
[White "Fafin1"]
[Black "CZpeeeter"]
[Result "0-1"]
[WhiteElo "1166"]
[BlackElo "1727"]
[TimeControl "180+1"]
[EndTime "9:17:54 PDT"]
[Termination "Uživatel CZpeeeter zvítězil na čas"]

1. e4 {[%clk 0:03:00.9]} 1... e5 {[%clk 0:02:56.8]} 2. Nf3 {[%clk 0:03:00.1]}
2... Nc6 {[%clk 0:02:56.5]} 3. Bb5 {[%clk 0:02:59.4]} 3... Nge7 {[%clk
0:02:55.5]} 4. d3 {[%clk 0:02:58]} 4... g6 {[%clk 0:02:55.2]} 5. Bg5 {[%clk
0:02:56.6]} 5... Bg7 {[%clk 0:02:52.5]} 6. Bxe7 {[%clk 0:02:52.5]} 6... Nxe7
{[%clk 0:02:50.5]} 7. Nxe5 {[%clk 0:02:50.7]} 7... Bxe5 {[%clk 0:02:49.1]} 8. c3
{[%clk 0:02:48.4]} 8... O-O {[%clk 0:02:45.7]} 9. O-O {[%clk 0:02:46.8]} 9... a6
{[%clk 0:02:44.7]} 10. Ba4 {[%clk 0:02:42.9]} 10... d5 {[%clk 0:02:42.8]} 11.
Re1 {[%clk 0:02:38.6]} 11... Bg7 {[%clk 0:02:38.3]} 12. Qe2 {[%clk 0:02:32.8]}
12... dxe4 {[%clk 0:02:28.9]} 13. Qxe4 {[%clk 0:02:30.1]} 13... Nf5 {[%clk
0:02:24.2]} 14. Nd2 {[%clk 0:02:23.4]} 14... c6 {[%clk 0:02:09.8]} 15. Nf3
{[%clk 0:02:18.2]} 15... Be6 {[%clk 0:02:08.2]} 16. c4 {[%clk 0:02:13]} 16... b5
{[%clk 0:01:53.1]} 17. cxb5 {[%clk 0:02:09.7]} 17... cxb5 {[%clk 0:01:52.3]} 18.
Bd1 {[%clk 0:02:01.5]} 18... Bxb2 {[%clk 0:01:45.4]} 19. Rb1 {[%clk 0:01:58.1]}
19... Bc3 {[%clk 0:01:39.8]} 20. Re2 {[%clk 0:01:54]} 20... Bd5 {[%clk
0:01:23.8]} 21. Qf4 {[%clk 0:01:44.8]} 21... Bxa2 {[%clk 0:01:14.5]} 22. Rc1
{[%clk 0:01:41.9]} 22... Qxd3 {[%clk 0:00:43.3]} 23. Rxa2 {[%clk 0:01:38]} 23...
b4 {[%clk 0:00:34.6]} 24. g3 {[%clk 0:01:17.4]} 24... Rae8 {[%clk 0:00:22.5]}
25. Ba4 {[%clk 0:01:11.2]} 25... Re4 {[%clk 0:00:20]} 26. Qc7 {[%clk 0:01:01]}
26... Qxf3 {[%clk 0:00:17.6]} 27. Bc6 {[%clk 0:00:50.8]} 27... Qd3 {[%clk
0:00:08.8]} 28. Bxe4 {[%clk 0:00:46.8]} 28... Qxe4 {[%clk 0:00:09.1]} 29. Rxa6
{[%clk 0:00:38.3]} 29... Nd4 {[%clk 0:00:08.6]} 30. Qf4 {[%clk 0:00:24.7]} 30...
Ne2+ {[%clk 0:00:08.2]} 31. Kf1 {[%clk 0:00:18.6]} 31... Nxf4 {[%clk 0:00:08.4]}
32. gxf4 {[%clk 0:00:17.6]} 32... Qxf4 {[%clk 0:00:08.8]} 33. Rc6 {[%clk
0:00:13]} 33... Qxc1+ {[%clk 0:00:08.1]} 34. Kg2 {[%clk 0:00:11.3]} 34... Re8
{[%clk 0:00:08.5]} 35. Kg3 {[%clk 0:00:08.2]} 35... Qg5+ {[%clk 0:00:08.4]} 36.
Kf3 {[%clk 0:00:06.6]} 36... Re5 {[%clk 0:00:07.2]} 37. Rc4 {[%clk 0:00:02.7]}
37... Qf5+ {[%clk 0:00:06.9]} 38. Kg2 {[%clk 0:00:01.2]} 38... Qg5+ {[%clk
0:00:07]} 0-1

[Event "Betsys MČR v online bleskovém šachu 2021"]
[Site "Chess.com"]
[Date "2021.04.17"]
[Round "2"]
[White "stripe122"]
[Black "horalek"]
[Result "1-0"]
[WhiteElo "1790"]
[BlackElo "1347"]
[TimeControl "180+1"]
[EndTime "9:17:57 PDT"]
[Termination "Uživatel stripe122 zvítězil na čas"]

1. e4 {[%clk 0:03:00.9]} 1... d5 {[%clk 0:02:58]} 2. exd5 {[%clk 0:02:59]} 2...
c6 {[%clk 0:02:57.2]} 3. dxc6 {[%clk 0:02:54.8]} 3... Nxc6 {[%clk 0:02:56.9]} 4.
Nf3 {[%clk 0:02:54.2]} 4... Bg4 {[%clk 0:02:56.5]} 5. Be2 {[%clk 0:02:52.7]}
5... e6 {[%clk 0:02:55.1]} 6. Nc3 {[%clk 0:02:51.6]} 6... Nf6 {[%clk 0:02:53.6]}
7. O-O {[%clk 0:02:50.5]} 7... Be7 {[%clk 0:02:49.5]} 8. d3 {[%clk 0:02:50]}
8... O-O {[%clk 0:02:48]} 9. Be3 {[%clk 0:02:48.2]} 9... a6 {[%clk 0:02:39.9]}
10. a4 {[%clk 0:02:46.8]} 10... h6 {[%clk 0:02:33.8]} 11. Nd2 {[%clk 0:02:38.6]}
11... Bxe2 {[%clk 0:02:31.6]} 12. Qxe2 {[%clk 0:02:38.2]} 12... Qc7 {[%clk
0:02:30.1]} 13. Nde4 {[%clk 0:02:36.1]} 13... Nxe4 {[%clk 0:02:24.4]} 14. Nxe4
{[%clk 0:02:33.9]} 14... Rfd8 {[%clk 0:02:20.5]} 15. f4 {[%clk 0:02:06.3]} 15...
Nd4 {[%clk 0:02:12.4]} 16. Bxd4 {[%clk 0:01:58.2]} 16... Rxd4 {[%clk 0:02:11.2]}
17. f5 {[%clk 0:01:57.1]} 17... exf5 {[%clk 0:02:05.7]} 18. Rxf5 {[%clk
0:01:56.1]} 18... Rad8 {[%clk 0:01:53.2]} 19. Raf1 {[%clk 0:01:51.7]} 19... Bc5
{[%clk 0:01:41]} 20. Kh1 {[%clk 0:01:49.4]} 20... Bf8 {[%clk 0:01:33.8]} 21. Qf2
{[%clk 0:01:36.1]} 21... R4d7 {[%clk 0:01:31.3]} 22. Nc3 {[%clk 0:01:19.9]}
22... f6 {[%clk 0:01:26.5]} 23. Rf4 {[%clk 0:01:07.3]} 23... Bd6 {[%clk
0:01:22.6]} 24. Rh4 {[%clk 0:01:03.4]} 24... Qc5 {[%clk 0:01:12.8]} 25. Qf3
{[%clk 0:00:56.9]} 25... Qg5 {[%clk 0:01:05.8]} 26. Rg4 {[%clk 0:00:44]} 26...
Qe5 {[%clk 0:01:00.1]} 27. g3 {[%clk 0:00:41.3]} 27... Kh8 {[%clk 0:00:50.5]}
28. Re4 {[%clk 0:00:39]} 28... Qg5 {[%clk 0:00:42.5]} 29. Rfe1 {[%clk
0:00:34.3]} 29... Be5 {[%clk 0:00:35.6]} 30. Nd1 {[%clk 0:00:22.1]} 30... Rd4
{[%clk 0:00:22.2]} 31. Nf2 {[%clk 0:00:18.6]} 31... Rxe4 {[%clk 0:00:20.2]} 32.
Nxe4 {[%clk 0:00:18.3]} 32... Qg6 {[%clk 0:00:16.2]} 33. c3 {[%clk 0:00:16.7]}
33... Qf7 {[%clk 0:00:14]} 34. d4 {[%clk 0:00:15.6]} 34... Bc7 {[%clk
0:00:10.6]} 35. Nc5 {[%clk 0:00:13.6]} 35... Re8 {[%clk 0:00:07]} 36. Rxe8+
{[%clk 0:00:11]} 36... Qxe8 {[%clk 0:00:05.9]} 37. Kg2 {[%clk 0:00:10.5]} 37...
Qe1 {[%clk 0:00:03.7]} 38. Qf2 {[%clk 0:00:08.8]} 38... Qe7 {[%clk 0:00:01.5]}
39. Qf3 {[%clk 0:00:05.9]} 39... b6 {[%clk 0:00:01.1]} 40. Ne4 {[%clk
0:00:05.1]} 1-0

[Event "Betsys MČR v online bleskovém šachu 2021"]
[Site "Chess.com"]
[Date "2021.04.17"]
[Round "2"]
[White "Klokan64"]
[Black "trosecnik"]
[Result "0-1"]
[WhiteElo "1428"]
[BlackElo "1843"]
[TimeControl "180+1"]
[EndTime "9:18:00 PDT"]
[Termination "Uživatel trosecnik zvítězil na čas"]

1. d4 {[%clk 0:02:59.8]} 1... d5 {[%clk 0:02:54.5]} 2. Nf3 {[%clk 0:02:58.4]}
2... e6 {[%clk 0:02:49.5]} 3. Bg5 {[%clk 0:02:57.4]} 3... Nf6 {[%clk 0:02:47.5]}
4. e3 {[%clk 0:02:56.9]} 4... Be7 {[%clk 0:02:42.4]} 5. Bd3 {[%clk 0:02:56.6]}
5... O-O {[%clk 0:02:41.9]} 6. O-O {[%clk 0:02:56.1]} 6... Nbd7 {[%clk
0:02:41.7]} 7. c3 {[%clk 0:02:52.8]} 7... b6 {[%clk 0:02:40]} 8. Qc2 {[%clk
0:02:51.1]} 8... h6 {[%clk 0:02:35]} 9. Bh4 {[%clk 0:02:49.9]} 9... c5 {[%clk
0:02:31.4]} 10. b3 {[%clk 0:02:47.7]} 10... Bb7 {[%clk 0:02:27.1]} 11. Nbd2
{[%clk 0:02:43.3]} 11... Rc8 {[%clk 0:02:10.1]} 12. Ne5 {[%clk 0:02:38.5]} 12...
Nxe5 {[%clk 0:01:40.9]} 13. dxe5 {[%clk 0:02:29.2]} 13... Ng4 {[%clk 0:01:09.7]}
14. Bxe7 {[%clk 0:02:24.8]} 14... Qxe7 {[%clk 0:01:10.6]} 15. Nf3 {[%clk
0:02:09.3]} 15... Qc7 {[%clk 0:01:05.8]} 16. h3 {[%clk 0:02:08.5]} 16... Nxe5
{[%clk 0:01:05.6]} 17. Nxe5 {[%clk 0:02:05.8]} 17... Qxe5 {[%clk 0:01:06.5]} 18.
Rae1 {[%clk 0:01:58.2]} 18... Qg5 {[%clk 0:01:01.6]} 19. f4 {[%clk 0:01:53.3]}
19... Qe7 {[%clk 0:00:51.9]} 20. Rf3 {[%clk 0:01:38.7]} 20... c4 {[%clk
0:00:34.1]} 21. Bh7+ {[%clk 0:01:35.4]} 21... Kh8 {[%clk 0:00:32.9]} 22. Rg3
{[%clk 0:01:34.8]} 22... Qh4 {[%clk 0:00:22.7]} 23. Qf2 {[%clk 0:00:56.2]} 23...
g6 {[%clk 0:00:11.3]} 24. Bxg6 {[%clk 0:00:36.8]} 24... fxg6 {[%clk 0:00:10.8]}
25. Rxg6 {[%clk 0:00:35.7]} 25... Qxf2+ {[%clk 0:00:10.8]} 26. Kxf2 {[%clk
0:00:35.6]} 26... Rce8 {[%clk 0:00:10.8]} 27. Rxh6+ {[%clk 0:00:35.1]} 27... Kg7
{[%clk 0:00:11]} 28. Rh4 {[%clk 0:00:31.2]} 28... cxb3 {[%clk 0:00:09.6]} 29.
axb3 {[%clk 0:00:30.1]} 29... Rc8 {[%clk 0:00:10.2]} 30. Rc1 {[%clk 0:00:25.5]}
30... Kf6 {[%clk 0:00:08.8]} 31. g4 {[%clk 0:00:23.2]} 31... Rh8 {[%clk
0:00:09]} 32. g5+ {[%clk 0:00:22.8]} 32... Kf5 {[%clk 0:00:08.5]} 33. Rxh8
{[%clk 0:00:18.6]} 33... Rxh8 {[%clk 0:00:09.4]} 34. Kg3 {[%clk 0:00:18.5]}
34... e5 {[%clk 0:00:07.1]} 35. h4 {[%clk 0:00:13.6]} 35... exf4+ {[%clk
0:00:04.8]} 36. exf4 {[%clk 0:00:12.8]} 36... Re8 {[%clk 0:00:05.4]} 37. Rf1
{[%clk 0:00:10.5]} 37... Re3+ {[%clk 0:00:03.4]} 38. Rf3 {[%clk 0:00:07.7]}
38... Re1 {[%clk 0:00:03.9]} 39. h5 {[%clk 0:00:05.1]} 39... d4 {[%clk
0:00:03.9]} 40. Rd3 {[%clk 0:00:02]} 40... Re3+ {[%clk 0:00:03.7]} 0-1

[Event "Betsys MČR v online bleskovém šachu 2021"]
[Site "Chess.com"]
[Date "2021.04.17"]
[Round "2"]
[White "KajaOl"]
[Black "SayQueen"]
[Result "1-0"]
[WhiteElo "2352"]
[BlackElo "1994"]
[TimeControl "180+1"]
[EndTime "9:18:04 PDT"]
[Termination "Uživatel KajaOl zvítězil na čas"]

1. e4 {[%clk 0:03:00.9]} 1... e5 {[%clk 0:02:58.6]} 2. Nf3 {[%clk 0:03:00.7]}
2... Nc6 {[%clk 0:02:57.6]} 3. Bc4 {[%clk 0:03:00.6]} 3... Nf6 {[%clk
0:02:56.5]} 4. d3 {[%clk 0:03:00.7]} 4... Bc5 {[%clk 0:02:50.9]} 5. Nbd2 {[%clk
0:02:58.1]} 5... a5 {[%clk 0:02:47.8]} 6. O-O {[%clk 0:02:55.5]} 6... d6 {[%clk
0:02:35.6]} 7. c3 {[%clk 0:02:54.6]} 7... O-O {[%clk 0:02:29.7]} 8. h3 {[%clk
0:02:44.8]} 8... h6 {[%clk 0:02:27.2]} 9. Bb3 {[%clk 0:02:44.2]} 9... Ba7 {[%clk
0:02:22.7]} 10. Re1 {[%clk 0:02:42.7]} 10... Be6 {[%clk 0:02:11.7]} 11. Bc2
{[%clk 0:02:42.2]} 11... Re8 {[%clk 0:02:08.8]} 12. Nf1 {[%clk 0:02:38.2]} 12...
d5 {[%clk 0:02:06.2]} 13. Qe2 {[%clk 0:02:21.3]} 13... dxe4 {[%clk 0:02:00.7]}
14. dxe4 {[%clk 0:02:20.8]} 14... Qe7 {[%clk 0:02:00.8]} 15. Ba4 {[%clk
0:02:12.6]} 15... Bd7 {[%clk 0:01:54.1]} 16. Ng3 {[%clk 0:02:04.6]} 16... Rab8
{[%clk 0:01:45]} 17. Be3 {[%clk 0:01:56.6]} 17... Bxe3 {[%clk 0:01:42.2]} 18.
Qxe3 {[%clk 0:01:56.8]} 18... b5 {[%clk 0:01:41.9]} 19. Bc2 {[%clk 0:01:56.4]}
19... b4 {[%clk 0:01:36.1]} 20. Rad1 {[%clk 0:01:50.1]} 20... bxc3 {[%clk
0:01:32]} 21. bxc3 {[%clk 0:01:49.8]} 21... Red8 {[%clk 0:01:30.2]} 22. Bb3
{[%clk 0:01:45.2]} 22... Be6 {[%clk 0:01:27.3]} 23. Ba4 {[%clk 0:01:24.5]} 23...
Rb6 {[%clk 0:01:15.5]} 24. Nf5 {[%clk 0:01:17.7]} 24... Bxf5 {[%clk 0:01:12.2]}
25. exf5 {[%clk 0:01:18.6]} 25... Rxd1 {[%clk 0:01:10.6]} 26. Rxd1 {[%clk
0:01:16.9]} 26... Qa3 {[%clk 0:01:09.9]} 27. Bb3 {[%clk 0:00:48.8]} 27... Rb8
{[%clk 0:01:07.3]} 28. Bc4 {[%clk 0:00:47.8]} 28... e4 {[%clk 0:01:00.2]} 29.
Nd4 {[%clk 0:00:46.8]} 29... Qc5 {[%clk 0:00:57.7]} 30. Bb3 {[%clk 0:00:43.1]}
30... Rd8 {[%clk 0:00:49.9]} 31. Nxc6 {[%clk 0:00:30.6]} 31... Rxd1+ {[%clk
0:00:48.3]} 32. Bxd1 {[%clk 0:00:31.5]} 32... Qxc6 {[%clk 0:00:48.2]} 33. Bc2
{[%clk 0:00:31]} 33... Qd5 {[%clk 0:00:47.1]} 34. g4 {[%clk 0:00:29.2]} 34...
Qe5 {[%clk 0:00:42.4]} 35. Qd4 {[%clk 0:00:28.2]} 35... Qxd4 {[%clk 0:00:40.4]}
36. cxd4 {[%clk 0:00:29.1]} 36... Kf8 {[%clk 0:00:35.2]} 37. Kf1 {[%clk
0:00:29.3]} 37... Ke7 {[%clk 0:00:33.7]} 38. Ke2 {[%clk 0:00:29]} 38... Kd6
{[%clk 0:00:29.2]} 39. Ke3 {[%clk 0:00:29.2]} 39... Nd5+ {[%clk 0:00:22.7]} 40.
Kxe4 {[%clk 0:00:22.2]} 40... Nc3+ {[%clk 0:00:22.3]} 41. Ke3 {[%clk 0:00:19.5]}
41... Nxa2 {[%clk 0:00:22.2]} 42. Bb3 {[%clk 0:00:19.8]} 42... Nb4 {[%clk
0:00:18.3]} 43. Bxf7 {[%clk 0:00:20.3]} 43... a4 {[%clk 0:00:16.8]} 44. Kd2
{[%clk 0:00:20.5]} 44... a3 {[%clk 0:00:13.9]} 45. Kc3 {[%clk 0:00:20.8]} 45...
a2 {[%clk 0:00:10.2]} 46. Kb2 {[%clk 0:00:21.4]} 46... Kc6 {[%clk 0:00:02.2]}
47. Bxa2 {[%clk 0:00:20.4]} 47... Nxa2 {[%clk 0:00:01]} 48. Kxa2 {[%clk
0:00:20.7]} 1-0

[Event "Betsys MČR v online bleskovém šachu 2021"]
[Site "Chess.com"]
[Date "2021.04.17"]
[Round "2"]
[White "tiger196223"]
[Black "jachym08"]
[Result "0-1"]
[WhiteElo "1849"]
[BlackElo "2169"]
[TimeControl "180+1"]
[EndTime "9:18:04 PDT"]
[Termination "Uživatel jachym08 zvítězil na čas"]

1. d4 {[%clk 0:03:00.9]} 1... Nf6 {[%clk 0:02:59.4]} 2. Nf3 {[%clk 0:02:59.4]}
2... g6 {[%clk 0:02:58.9]} 3. Bg5 {[%clk 0:02:58.7]} 3... Bg7 {[%clk 0:02:57.8]}
4. Nbd2 {[%clk 0:02:57.3]} 4... d5 {[%clk 0:02:57.4]} 5. e3 {[%clk 0:02:57.2]}
5... O-O {[%clk 0:02:56]} 6. Bd3 {[%clk 0:02:57]} 6... c5 {[%clk 0:02:54]} 7. c3
{[%clk 0:02:57]} 7... Nc6 {[%clk 0:02:54]} 8. O-O {[%clk 0:02:56.7]} 8... b6
{[%clk 0:02:49.4]} 9. Qc2 {[%clk 0:02:51.4]} 9... c4 {[%clk 0:02:30.7]} 10. Be2
{[%clk 0:02:50.6]} 10... Bf5 {[%clk 0:02:30]} 11. Qd1 {[%clk 0:02:48.9]} 11...
h6 {[%clk 0:02:26.4]} 12. Bxf6 {[%clk 0:02:48.6]} 12... Bxf6 {[%clk 0:02:25]}
13. h3 {[%clk 0:02:42.4]} 13... Kg7 {[%clk 0:02:07.8]} 14. Re1 {[%clk
0:02:38.5]} 14... Re8 {[%clk 0:02:01.5]} 15. Bf1 {[%clk 0:02:37.7]} 15... e5
{[%clk 0:01:59.9]} 16. dxe5 {[%clk 0:02:37.2]} 16... Nxe5 {[%clk 0:02:00.8]} 17.
Nxe5 {[%clk 0:02:36.7]} 17... Bxe5 {[%clk 0:02:01.7]} 18. Nf3 {[%clk 0:02:36.2]}
18... Bc7 {[%clk 0:01:57.8]} 19. Nd4 {[%clk 0:02:33.1]} 19... Be4 {[%clk
0:01:55.8]} 20. f4 {[%clk 0:02:10.1]} 20... Qf6 {[%clk 0:01:42.4]} 21. Be2
{[%clk 0:01:51]} 21... Re7 {[%clk 0:01:34.4]} 22. Bf3 {[%clk 0:01:35.9]} 22...
Rae8 {[%clk 0:01:33.4]} 23. Bxe4 {[%clk 0:01:24.3]} 23... Rxe4 {[%clk
0:01:34.3]} 24. Qd2 {[%clk 0:01:23.3]} 24... Qe7 {[%clk 0:01:27.3]} 25. Kf2
{[%clk 0:01:18.5]} 25... Qh4+ {[%clk 0:01:18.8]} 26. Kf1 {[%clk 0:01:08.8]}
26... h5 {[%clk 0:01:08.8]} 27. Qf2 {[%clk 0:01:07.2]} 27... Qf6 {[%clk
0:01:07.4]} 28. Re2 {[%clk 0:01:00.9]} 28... a6 {[%clk 0:01:03.4]} 29. Rae1
{[%clk 0:00:59.3]} 29... b5 {[%clk 0:01:03.1]} 30. a3 {[%clk 0:00:58.8]} 30...
Bb6 {[%clk 0:01:01.2]} 31. g4 {[%clk 0:00:52.6]} 31... hxg4 {[%clk 0:00:55.1]}
32. hxg4 {[%clk 0:00:50.4]} 32... Bc7 {[%clk 0:00:50.7]} 33. Kg2 {[%clk
0:00:43.6]} 33... Qd8 {[%clk 0:00:45.4]} 34. Rh1 {[%clk 0:00:37.5]} 34... Rh8
{[%clk 0:00:39.5]} 35. Rxh8 {[%clk 0:00:32.2]} 35... Qxh8 {[%clk 0:00:40.4]} 36.
Qg3 {[%clk 0:00:30.8]} 36... Qe8 {[%clk 0:00:34.9]} 37. Qf3 {[%clk 0:00:26.3]}
37... Qd7 {[%clk 0:00:30.8]} 38. Qh3 {[%clk 0:00:07.8]} 38... Qe8 {[%clk
0:00:26.9]} 39. g5 {[%clk 0:00:04.1]} 39... Bxf4 {[%clk 0:00:20.5]} 40. exf4
{[%clk 0:00:02.9]} 40... Rxe2+ {[%clk 0:00:20.2]} 41. Nxe2 {[%clk 0:00:02.7]}
41... Qxe2+ {[%clk 0:00:21.1]} 42. Kg3 {[%clk 0:00:02.7]} 42... Qe3+ {[%clk
0:00:19.3]} 43. Kg4 {[%clk 0:00:03]} 43... Qg1+ {[%clk 0:00:18]} 44. Kf3 {[%clk
0:00:02.2]} 44... Qd1+ {[%clk 0:00:18.1]} 45. Kg3 {[%clk 0:00:02]} 45... Qd3+
{[%clk 0:00:17.7]} 46. Kg4 {[%clk 0:00:01.2]} 46... Qe2+ {[%clk 0:00:18.2]} 47.
Kg3 {[%clk 0:00:01.2]} 47... Qxb2 {[%clk 0:00:17]} 0-1